[Event "Top 12 FRA-chT 2017"]
[Site "Chartres"]
[Date "2017.05.21"]
[Round "4"]
[White "Dubois, Jean-Marie"]
[Black "De Seroux, Camille"]
[Result "0-1"]
[ECO "E16"]
[WhiteElo "2255"]
[BlackElo "2117"]
[Annotator "NA"]
[PlyCount "114"]
[EventDate "2017.??.??"]
[EventType "team-tourn"]
[EventCountry "FRA"]
[SourceTitle "playchess.com"]
[Source "ChessBase"]
[SourceQuality "1"]
[WhiteTeam "Montpellier"]
[BlackTeam "Grasse Echecs"]
[TimeControl "40/5400+30:1800+30"]

1. d4 {[%emt 0:00:21]} Nf6 {[%emt 0:00:07]} 2. c4 {[%emt 0:00:07]} e6 {[%emt 0:00:05]} 3. Nf3 {[%emt 0:00:06]} Bb4+ {[%emt 0:00:26]} 4. Bd2 {[%emt 0:00:08]} Qe7 {[%emt 0:00:15]} 5. g3 {[%emt 0:00:38]} Nc6 {[%emt 0:01:13]} 6. Nc3 {[%emt 0:01:22]} O-O {[%emt 0:00:21]} 7. Bg2 {[%emt 0:00:10]} Na5 {[%emt 0:00:26]} 8. b3 {[%emt 0:00:36]} b6 {[%emt 0:00:32]} 9. O-O {[%emt 0:00:16]} Bb7 {[%emt 0:00:36]} 10. Qc2 {[%emt 0:00:31]} Rac8 {[%emt 0:18:18]} 11. Rad1 {[%emt 0:23:34]} c5 {[%emt 0:14:41]} 12. dxc5 {[%emt 0:03:07]} Bxc5 {[%emt 0:04:10]} 13. Bg5 {[%emt 0:02:05]} Rfd8 {[%emt 0:06:51]} 14. e4 {[%emt 0:06:08]} d6 {[%emt 0:02:13]} 15. Qb2 {[%emt 0:11:13]} h6 {[%emt 0:12:11]} 16. Bd2 {[%emt 0:12:29]} Bb4 {[%emt 0:07:45]} 17. Rfe1 {[%emt 0:04:46]} e5 {[%emt 0:07:32]} 18. Nh4 {[%emt 0:03:39]} Bc6 {[%emt 0:06:52]} 19. Nf5 {[%emt 0:09:44]} Qb7 {[%emt 0:00:22]} 20. Nd5 {[%emt 0:03:05]} Bxd5 {[%emt 0:03:33]} 21. Bxb4 {[%emt 0:00:41]} Bxe4 {[%emt 0:02:03]} 22. Nxd6 {[%emt 0:03:03]} Rxd6 {[%emt 0:02:06]} 23. Bxe4 {[%emt 0:02:00]} Nxe4 {[%emt 0:01:25]} 24. Bxd6 {[%emt 0:00:28]} Ng5 {[%emt 0:00:36]} 25. Re3 {[%emt 0:06:50]} Nf3+ {[%emt 0:04:17]} 26. Kf1 {[%emt 0:03:04]} Nxh2+ {[%emt 0:00:38]} 27. Ke2 {[%emt 0:00:01]} Ng4 {[%emt 0:01:05]} 28. Red3 {[%emt 0:00:39]} Qe4+ {[%emt 0:01:34]} 29. Kf1 {[%emt 0:02:21]} Qh1+ {[%emt 0:00:12]} 30. Ke2 {[%emt 0:00:05]} Qe4+ {[%emt 0:00:08]} 31. Kf1 {[%emt 0:00:39]} Nc6 {[%emt 0:01:14]} 32. f3 {[%emt 0:00:51]} Ne3+ {[%emt 0:00:45]} 33. Rxe3 {[%emt 0:01:04]} Qxe3 {[%emt 0:00:06]} 34. Qe2 {[%emt 0:00:24]} Qxe2+ {[%emt 0:01:34]} 35. Kxe2 {[%emt 0:00:04]} f6 {[%emt 0:00:48]} 36. Ke3 {[%emt 0:01:03]} Rd8 {[%emt 0:00:39]} 37. Rd3 {[%emt 0:00:35]} Nd4 {[%emt 0:00:40]} 38. c5 {[%emt 0:00:22]} Kf7 {[%emt 0:00:38]} 39. f4 {[%emt 0:00:26]} bxc5 {[%emt 0:00:25]} 40. fxe5 {[%emt 0:00:17]} fxe5 {[%emt 0:30:31]} 41. Bxc5 {[%emt 0:02:00]} Nf5+ {[%emt 0:00:00]} 42. Kd2 {[%emt 0:01:33]} Rxd3+ {[%emt 0:00:00]} 43. Kxd3 {[%emt 0:00:05]} Nxg3 {[%emt 0:00:00]} 44. Bxa7 {[%emt 0:00:19]} Ke6 {[%emt 0:00:00]} 45. Bf2 {[%emt 0:05:36]} Nf5 {[%emt 0:00:00]} 46. a4 {[%emt 0:01:37]} Kd5 {[%emt 0:00:00]} 47. a5 {[%emt 0:06:14]} e4+ {[%emt 0:00:00]} 48. Ke2 {[%emt 0:00:57]} Kc6 {[%emt 0:00:00]} 49. b4 {[%emt 0:07:03]} Kb5 {[%emt 0:00:00]} 50. Bc5 {[%emt 0:01:37]} g5 {[%emt 0:00:00]} 51. Be3 {[%emt 0:02:36]} g4 {[%emt 0:00:00]} 52. Bf4 {[%emt 0:01:27]} h5 {[%emt 0:00:00]} 53. Bd2 {[%emt 0:01:52]} h4 {[%emt 0:00:00]} 54. Kf2 {[%emt 0:02:03]} h3 {[%emt 0:00:00]} 55. Be1 {[%emt 0:00:16]} e3+ {[%emt 0:02:15]} 56. Kf1 {[%emt 0:01:12]} g3 {[%emt 0:01:47]} 57. Kg1 {[%emt 0:01:08]} Nd4 {[%emt 0:00:25]} 0-1

[Event "Top 12 FRA-chT 2017"]
[Site "Chartres"]
[Date "2017.05.21"]
[Round "4"]
[White "Leconte, Maria"]
[Black "Bollengier, Andreea"]
[Result "1/2-1/2"]
[ECO "B01"]
[WhiteElo "2174"]
[BlackElo "2234"]
[Annotator "NA"]
[PlyCount "47"]
[EventDate "2017.??.??"]
[EventType "team-tourn"]
[EventCountry "FRA"]
[SourceTitle "playchess.com"]
[Source "ChessBase"]
[SourceQuality "1"]
[WhiteTeam "Saint Quentin"]
[BlackTeam "Nice Alekhine"]
[TimeControl "40/5400+30:1800+30"]

1. e4 {[%emt 0:00:00]} d5 {[%emt 0:00:12]} 2. exd5 {[%emt 0:00:00]} Qxd5 {[%emt 0:00:19]} 3. Nc3 {[%emt 0:00:00]} Qd6 {[%emt 0:00:22]} 4. d4 {[%emt 0:00:15]} c6 {[%emt 0:00:25]} 5. Nf3 {[%emt 0:01:49]} Bg4 {[%emt 0:00:32]} 6. Be3 {[%emt 0:20:06]} Nf6 {[%emt 0:07:30]} 7. h3 {[%emt 0:11:28]} Bxf3 {[%emt 0:12:46]} 8. Qxf3 {[%emt 0:00:11]} e6 {[%emt 0:00:50]} 9. O-O-O {[%emt 0:03:54]} Qc7 {[%emt 0:02:37]} 10. Kb1 {[%emt 0:20:39]} Nbd7 {[%emt 0:01:37]} 11. g4 {[%emt 0:03:37]} Nb6 {[%emt 0:11:11]} 12. g5 {[%emt 0:00:55]} Nfd5 {[%emt 0:00:20]} 13. Nxd5 {[%emt 0:00:33]} Nxd5 {[%emt 0:01:00]} 14. c4 {[%emt 0:02:45]} Nxe3 {[%emt 0:00:44]} 15. fxe3 {[%emt 0:00:43]} O-O-O {[%emt 0:25:19]} 16. Bg2 {[%emt 0:00:38]} Kb8 {[%emt 0:03:37]} 17. h4 {[%emt 0:06:23]} h6 {[%emt 0:01:56]} 18. g6 {[%emt 0:06:59]} fxg6 {[%emt 0:09:03]} 19. Qg4 {[%emt 0:00:06]} e5 {[%emt 0:02:27]} 20. Qxg6 {[%emt 0:05:43]} exd4 {[%emt 0:00:43]} 21. exd4 {[%emt 0:00:17]} Be7 {[%emt 0:01:14]} 22. d5 {[%emt 0:00:56]} cxd5 {[%emt 0:01:24]} 23. Rxd5 {[%emt 0:03:01]} Rxd5 {[%emt 0:00:24]} 24. Bxd5 {[%emt 0:00:32]} 1/2-1/2

[Event "Top 12 FRA-chT 2017"]
[Site "Chartres"]
[Date "2017.05.21"]
[Round "4"]
[White "Steil-Antoni, Fiona"]
[Black "Barbini, Denis"]
[Result "1-0"]
[ECO "B09"]
[WhiteElo "2155"]
[BlackElo "2101"]
[Annotator "NA"]
[PlyCount "69"]
[EventDate "2017.??.??"]
[EventType "team-tourn"]
[EventCountry "FRA"]
[SourceTitle "playchess.com"]
[Source "ChessBase"]
[SourceQuality "1"]
[WhiteTeam "Vandoeuvre"]
[BlackTeam "Lisieux"]
[TimeControl "40/5400+30:1800+30"]

1. e4 {[%emt 0:01:56]} d6 {[%emt 0:00:43]} 2. d4 {[%emt 0:00:07]} Nf6 {[%emt 0:00:06]} 3. Nc3 {[%emt 0:00:06]} g6 {[%emt 0:00:13]} 4. f4 {[%emt 0:00:07]} Bg7 {[%emt 0:00:08]} 5. Nf3 {[%emt 0:00:09]} c5 {[%emt 0:00:22]} 6. Bb5+ {[%emt 0:00:49]} Bd7 {[%emt 0:00:20]} 7. e5 {[%emt 0:00:32]} Ng4 {[%emt 0:00:13]} 8. e6 {[%emt 0:00:34]} Bxb5 {[%emt 0:00:21]} 9. exf7+ {[%emt 0:00:15]} Kd7 {[%emt 0:00:32]} 10. Nxb5 {[%emt 0:00:17]} Qa5+ {[%emt 0:00:20]} 11. Nc3 {[%emt 0:00:02]} cxd4 {[%emt 0:00:41]} 12. Nxd4 {[%emt 0:00:14]} Bxd4 {[%emt 0:00:31]} 13. Qxd4 {[%emt 0:00:12]} Nc6 {[%emt 0:00:21]} 14. Qc4 {[%emt 0:00:02]} Qb6 {[%emt 0:00:59]} 15. Qe2 {[%emt 0:00:13]} h5 {[%emt 0:01:55]} 16. h3 {[%emt 0:03:52]} Nh6 {[%emt 0:01:17]} 17. Bd2 {[%emt 0:00:19]} Nf5 {[%emt 0:08:56]} 18. O-O-O {[%emt 0:01:08]} Ng3 {[%emt 0:11:46]} 19. Qd3 {[%emt 0:00:07]} Nxh1 {[%emt 0:03:37]} 20. Rxh1 {[%emt 0:00:02]} Raf8 {[%emt 0:09:58]} 21. Qxg6 {[%emt 0:01:49]} Qd4 {[%emt 0:06:29]} 22. Ne4 {[%emt 0:05:31]} d5 {[%emt 0:20:28]} 23. Ng5 {[%emt 0:03:01]} Qf6 {[%emt 0:02:01]} 24. Qd3 {[%emt 0:00:45]} Qd6 {[%emt 0:05:30]} 25. Re1 {[%emt 0:05:30]} Rh6 {[%emt 0:05:07]} 26. a3 {[%emt 0:06:03]} Rf6 {[%emt 0:07:47]} 27. Nh7 {[%emt 0:05:04]} R6xf7 {[%emt 0:00:09]} 28. Nxf8+ {[%emt 0:00:07]} Rxf8 {[%emt 0:00:11]} 29. Qh7 {[%emt 0:01:21]} Qc5 {[%emt 0:02:43]} 30. Qxh5 {[%emt 0:04:17]} Nd4 {[%emt 0:02:06]} 31. Qg4+ {[%emt 0:00:17]} Kd8 {[%emt 0:01:35]} 32. Bc3 {[%emt 0:01:36]} Qc4 {[%emt 0:01:52]} 33. Qg7 {[%emt 0:03:20]} Rxf4 {[%emt 0:01:41]} 34. Qxe7+ {[%emt 0:00:17]} Kc8 {[%emt 0:00:06]} 35. Qe8+ {[%emt 0:00:54]} 1-0

[Event "Top 12 FRA-chT 2017"]
[Site "Chartres"]
[Date "2017.05.21"]
[Round "4"]
[White "Aflalo, Sophie"]
[Black "Choisy, Mathilde"]
[Result "0-1"]
[ECO "A04"]
[WhiteElo "2135"]
[BlackElo "2153"]
[Annotator "NA"]
[PlyCount "57"]
[EventDate "2017.??.??"]
[EventType "team-tourn"]
[EventCountry "FRA"]
[SourceTitle "playchess.com"]
[Source "ChessBase"]
[SourceQuality "1"]
[WhiteTeam "Tremblay-En-France"]
[BlackTeam "Mulhouse Philidor"]
[TimeControl "40/5400+30:1800+30"]

1. Nf3 {[%emt 0:02:04]} c5 {[%emt 0:00:41]} 2. g3 {[%emt 0:01:15]} Nc6 {[%emt 0:02:29]} 3. Bg2 {[%emt 0:00:05]} g6 {[%emt 0:00:19]} 4. O-O {[%emt 0:00:19]} Bg7 {[%emt 0:00:16]} 5. e3 {[%emt 0:07:21]} d5 {[%emt 0:08:03]} 6. d4 {[%emt 0:01:07]} cxd4 {[%emt 0:04:19]} 7. Nxd4 {[%emt 0:00:30]} Nf6 {[%emt 0:11:12]} 8. c4 {[%emt 0:14:11]} O-O {[%emt 0:07:46]} 9. Nxc6 {[%emt 0:03:16]} bxc6 {[%emt 0:00:07]} 10. Qa4 {[%emt 0:00:47]} Qb6 {[%emt 0:07:30]} 11. Nc3 {[%emt 0:17:53]} e6 {[%emt 0:03:04]} 12. Rb1 {[%emt 0:07:03]} Ba6 {[%emt 0:06:34]} 13. c5 {[%emt 0:01:35]} Qb7 {[%emt 0:01:41]} 14. Rd1 {[%emt 0:00:59]} Nd7 {[%emt 0:00:55]} 15. Qa3 {[%emt 0:06:13]} Ne5 {[%emt 0:07:06]} 16. b3 {[%emt 0:14:17]} Bd3 {[%emt 0:09:54]} 17. Rb2 {[%emt 0:01:41]} Bf5 {[%emt 0:00:41]} 18. Bd2 {[%emt 0:14:46]} Rfb8 {[%emt 0:04:46]} 19. Na4 {[%emt 0:01:58]} Nc4 {[%emt 0:04:24]} 20. bxc4 {[%emt 0:00:06]} Bxb2 {[%emt 0:00:05]} 21. Nxb2 {[%emt 0:02:16]} Qxb2 {[%emt 0:00:05]} 22. Qa5 {[%emt 0:00:26]} Qc2 {[%emt 0:02:16]} 23. Bf3 {[%emt 0:00:48]} Be4 {[%emt 0:01:26]} 24. Be2 {[%emt 0:00:31]} Rb1 {[%emt 0:01:24]} 25. Rxb1 {[%emt 0:00:20]} Qxb1+ {[%emt 0:00:08]} 26. Be1 {[%emt 0:00:05]} Rb8 {[%emt 0:02:27]} 27. cxd5 {[%emt 0:00:31]} Bxd5 {[%emt 0:01:28]} 28. Bf1 {[%emt 0:01:04]} Qe4 {[%emt 0:01:14]} 29. f3 {[%emt 0:00:22]} 0-1

[Event "Top 12 FRA-chT 2017"]
[Site "Chartres"]
[Date "2017.05.21"]
[Round "4"]
[White "Rodon, Gurvan"]
[Black "Philippe, Christophe"]
[Result "1/2-1/2"]
[ECO "A56"]
[WhiteElo "2047"]
[BlackElo "2386"]
[Annotator "NA"]
[PlyCount "97"]
[EventDate "2017.??.??"]
[EventType "team-tourn"]
[EventCountry "FRA"]
[SourceTitle "playchess.com"]
[Source "ChessBase"]
[SourceQuality "1"]
[WhiteTeam "Lisieux"]
[BlackTeam "Vandoeuvre"]
[TimeControl "40/5400+30:1800+30"]

1. d4 {[%emt 0:00:00]} Nf6 {[%emt 0:00:14]} 2. c4 {[%emt 0:00:00]} c5 {[%emt 0:00:18]} 3. Nf3 {[%emt 0:00:50]} cxd4 {[%emt 0:00:22]} 4. Nxd4 {[%emt 0:00:08]} b6 {[%emt 0:02:12]} 5. Nc3 {[%emt 0:06:53]} Bb7 {[%emt 0:00:00]} 6. f3 {[%emt 0:01:59]} e6 {[%emt 0:05:02]} 7. e4 {[%emt 0:00:18]} Bb4 {[%emt 0:01:01]} 8. Qb3 {[%emt 0:09:44]} Na6 {[%emt 0:00:47]} 9. a3 {[%emt 0:00:39]} Bc5 {[%emt 0:09:51]} 10. Be3 {[%emt 0:00:32]} O-O {[%emt 0:00:16]} 11. Be2 {[%emt 0:00:50]} d5 {[%emt 0:03:04]} 12. cxd5 {[%emt 0:04:47]} exd5 {[%emt 0:01:11]} 13. e5 {[%emt 0:03:29]} Re8 {[%emt 0:02:55]} 14. f4 {[%emt 0:03:24]} Ng4 {[%emt 0:07:42]} 15. Bg1 {[%emt 0:20:04]} Qh4+ {[%emt 0:17:42]} 16. g3 {[%emt 0:00:10]} Qh3 {[%emt 0:00:53]} 17. O-O-O {[%emt 0:02:50]} Rac8 {[%emt 0:03:18]} 18. Kb1 {[%emt 0:07:02]} Bxd4 {[%emt 0:12:13]} 19. Bxd4 {[%emt 0:00:24]} Nc5 {[%emt 0:00:12]} 20. Bxc5 {[%emt 0:03:09]} Rxc5 {[%emt 0:00:18]} 21. Bxg4 {[%emt 0:02:27]} Qxg4 {[%emt 0:00:40]} 22. Rd4 {[%emt 0:04:52]} Rxe5 {[%emt 0:07:08]} 23. Qa4 {[%emt 0:02:18]} Re7 {[%emt 0:02:49]} 24. Qxa7 {[%emt 0:00:11]} Qg6+ {[%emt 0:04:04]} 25. Ka1 {[%emt 0:01:33]} h6 {[%emt 0:01:35]} 26. Rhd1 {[%emt 0:01:11]} Rec7 {[%emt 0:05:15]} 27. Qa4 {[%emt 0:07:09]} Kh7 {[%emt 0:01:23]} 28. Rb4 {[%emt 0:10:59]} Rc4 {[%emt 0:05:00]} 29. Qb3 {[%emt 0:00:26]} Rxb4 {[%emt 0:00:23]} 30. Qxb4 {[%emt 0:00:07]} Qc2 {[%emt 0:00:30]} 31. Qd4 {[%emt 0:01:11]} Rc4 {[%emt 0:03:27]} 32. Qd3+ {[%emt 0:02:29]} Qxd3 {[%emt 0:00:07]} 33. Rxd3 {[%emt 0:00:01]} d4 {[%emt 0:00:42]} 34. Ne2 {[%emt 0:00:49]} Rc2 {[%emt 0:00:36]} 35. Nxd4 {[%emt 0:00:58]} Rxh2 {[%emt 0:00:40]} 36. Re3 h5 {[%emt 0:01:52]} 37. Kb1 {[%emt 0:03:56]} h4 {[%emt 0:01:06]} 38. gxh4 {[%emt 0:00:36]} Rxh4 {[%emt 0:00:06]} 39. Rb3 {[%emt 0:00:21]} Rxf4 {[%emt 0:02:21]} 40. Rxb6 {[%emt 0:00:04]} Bd5 {[%emt 0:30:38]} 41. Ne2 {[%emt 0:02:19]} Rf2 {[%emt 0:00:00]} 42. Nc3 {[%emt 0:00:45]} Bf3 {[%emt 0:00:00]} 43. Rb5 {[%emt 0:05:18]} Kh6 {[%emt 0:00:00]} 44. Nd5 {[%emt 0:06:29]} g5 45. Kc1 {[%emt 0:01:08]} g4 {[%emt 0:00:00]} 46. Ne3 {[%emt 0:00:10]} g3 {[%emt 0:00:00]} 47. Nf5+ {[%emt 0:01:12]} Kg5 {[%emt 0:00:00]} 48. Nxg3+ {[%emt 0:00:14]} Kg4 {[%emt 0:00:00]} 49. Rf5 {[%emt 0:06:05]} 1/2-1/2

[Event "Top 12 FRA-chT 2017"]
[Site "Chartres"]
[Date "2017.05.21"]
[Round "4"]
[White "Dacalor, Aurelie"]
[Black "Vitoux, Colomban"]
[Result "0-1"]
[ECO "A50"]
[WhiteElo "1997"]
[BlackElo "2382"]
[Annotator "NA"]
[PlyCount "74"]
[EventDate "2017.??.??"]
[EventType "team-tourn"]
[EventCountry "FRA"]
[SourceTitle "playchess.com"]
[Source "ChessBase"]
[SourceQuality "1"]
[WhiteTeam "Bois-Colombes"]
[BlackTeam "Strasbourg"]
[TimeControl "40/5400+30:1800+30"]

1. d4 {[%emt 0:00:00]} Nf6 {[%emt 0:00:17]} 2. c4 {[%emt 0:00:00]} b6 {[%emt 0:00:46]} 3. Nc3 {[%emt 0:01:24]} Bb7 {[%emt 0:00:07]} 4. Nf3 {[%emt 0:04:17]} g6 {[%emt 0:01:48]} 5. g3 {[%emt 0:02:45]} d5 {[%emt 0:01:30]} 6. Bg2 {[%emt 0:04:22]} Bg7 {[%emt 0:05:28]} 7. O-O {[%emt 0:05:16]} O-O {[%emt 0:03:51]} 8. cxd5 {[%emt 0:17:05]} Nxd5 {[%emt 0:02:24]} 9. Re1 {[%emt 0:00:34]} Nxc3 {[%emt 0:02:21]} 10. bxc3 {[%emt 0:00:03]} c5 {[%emt 0:03:26]} 11. Bb2 {[%emt 0:07:07]} Nc6 {[%emt 0:11:19]} 12. e4 {[%emt 0:02:43]} e6 {[%emt 0:08:11]} 13. Rb1 {[%emt 0:10:29]} Na5 {[%emt 0:10:49]} 14. Qe2 {[%emt 0:01:52]} Qc8 {[%emt 0:02:46]} 15. Bf1 {[%emt 0:07:53]} Rd8 {[%emt 0:03:24]} 16. Ba1 {[%emt 0:03:03]} Qc6 {[%emt 0:05:50]} 17. Bg2 {[%emt 0:13:33]} Rac8 {[%emt 0:01:55]} 18. Rbd1 {[%emt 0:03:47]} Qa4 {[%emt 0:02:21]} 19. Rc1 {[%emt 0:02:27]} Nc4 {[%emt 0:05:28]} 20. g4 {[%emt 0:05:01]} b5 {[%emt 0:09:46]} 21. dxc5 {[%emt 0:02:19]} Rxc5 {[%emt 0:01:32]} 22. Rcd1 {[%emt 0:00:29]} Rcc8 {[%emt 0:00:59]} 23. Nd4 {[%emt 0:01:51]} e5 {[%emt 0:05:22]} 24. Nb3 {[%emt 0:00:22]} Qa3 {[%emt 0:00:39]} 25. g5 {[%emt 0:01:01]} Qe7 {[%emt 0:01:04]} 26. h4 {[%emt 0:00:26]} h6 {[%emt 0:01:36]} 27. Bh3 {[%emt 0:00:50]} Rxd1 {[%emt 0:00:50]} 28. Rxd1 {[%emt 0:00:17]} Rd8 {[%emt 0:00:03]} 29. Rxd8+ {[%emt 0:00:34]} Qxd8 {[%emt 0:00:03]} 30. Nc5 {[%emt 0:00:22]} Bc8 {[%emt 0:03:10]} 31. Bxc8 {[%emt 0:01:21]} Qxc8 {[%emt 0:00:04]} 32. Nb3 {[%emt 0:00:32]} Qh3 {[%emt 0:01:17]} 33. Nd2 {[%emt 0:00:30]} Nxd2 {[%emt 0:01:02]} 34. Qxd2 {[%emt 0:00:06]} Qg4+ {[%emt 0:00:31]} 35. Kf1 {[%emt 0:00:11]} Qxh4 {[%emt 0:00:28]} 36. Bb2 {[%emt 0:01:38]} Qh1+ {[%emt 0:00:37]} 37. Ke2 {[%emt 0:00:17]} Qxe4+ {[%emt 0:00:10]} 0-1

[Event "Top 12 FRA-chT 2017"]
[Site "Chartres"]
[Date "2017.05.22"]
[Round "5"]
[White "Choisy, Mathilde"]
[Black "Baldi, Valentine"]
[Result "0-1"]
[ECO "C42"]
[WhiteElo "2153"]
[BlackElo "1862"]
[Annotator "NA"]
[PlyCount "72"]
[EventDate "2017.??.??"]
[EventType "team-tourn"]
[EventCountry "FRA"]
[SourceTitle "playchess.com"]
[Source "ChessBase"]
[SourceQuality "1"]
[WhiteTeam "Mulhouse Philidor"]
[BlackTeam "Bois-Colombes"]
[TimeControl "40/5400+30:1800+30"]

1. e4 {[%emt 0:00:00]} e5 {[%emt 0:00:04]} 2. Nf3 {[%emt 0:00:00]} Nf6 {[%emt 0:00:04]} 3. Nxe5 {[%emt 0:00:25]} Nxe4 {[%emt 0:00:11]} 4. Qe2 {[%emt 0:02:58]} Qe7 {[%emt 0:00:14]} 5. Qxe4 {[%emt 0:02:09]} d6 {[%emt 0:00:15]} 6. d4 {[%emt 0:01:19]} dxe5 {[%emt 0:00:04]} 7. dxe5 {[%emt 0:04:46]} Nc6 {[%emt 0:00:42]} 8. Bb5 {[%emt 0:07:59]} Bd7 {[%emt 0:01:05]} 9. O-O {[%emt 0:04:41]} O-O-O {[%emt 0:06:33]} 10. Nc3 {[%emt 0:16:07]} Nxe5 {[%emt 0:18:43]} 11. Be3 {[%emt 0:14:27]} Bxb5 {[%emt 0:18:38]} 12. Nxb5 {[%emt 0:00:25]} a6 {[%emt 0:01:10]} 13. Nc3 {[%emt 0:07:31]} Qe6 {[%emt 0:09:30]} 14. Rad1 {[%emt 0:05:39]} Bd6 {[%emt 0:02:28]} 15. h3 {[%emt 0:01:57]} f5 {[%emt 0:07:09]} 16. Qd5 {[%emt 0:06:24]} Qe7 {[%emt 0:13:45]} 17. Qd4 {[%emt 0:08:58]} Nc6 {[%emt 0:03:29]} 18. Nd5 {[%emt 0:03:50]} Qf7 {[%emt 0:06:09]} 19. Qc4 {[%emt 0:02:07]} Kb8 {[%emt 0:01:27]} 20. Qa4 {[%emt 0:02:02]} h6 {[%emt 0:01:29]} 21. b4 {[%emt 0:04:23]} f4 {[%emt 0:01:08]} 22. Bc1 {[%emt 0:00:42]} f3 {[%emt 0:00:54]} 23. g3 {[%emt 0:01:15]} Qh5 {[%emt 0:01:41]} 24. Kh2 {[%emt 0:01:04]} Bxg3+ {[%emt 0:01:09]} 25. fxg3 {[%emt 0:00:04]} Rxd5 {[%emt 0:00:11]} 26. Rxd5 {[%emt 0:00:29]} Qxd5 {[%emt 0:00:01]} 27. Qb3 {[%emt 0:00:47]} Qe4 {[%emt 0:01:03]} 28. Qxf3 {[%emt 0:00:54]} Qxc2+ {[%emt 0:00:23]} 29. Qf2 {[%emt 0:00:26]} Qc4 {[%emt 0:00:46]} 30. a3 {[%emt 0:00:32]} Re8 {[%emt 0:00:07]} 31. Re1 {[%emt 0:00:28]} Ne5 32. Be3 {[%emt 0:00:18]} Qd5 {[%emt 0:03:35]} 33. Rf1 {[%emt 0:00:46]} g5 {[%emt 0:00:58]} 34. Bd4 Ka8 {[%emt 0:01:09]} 35. Qf7 {[%emt 0:00:58]} Nd3 {[%emt 0:00:31]} 36. Rf2 {[%emt 0:00:16]} Re2 {[%emt 0:00:11]} 0-1

[Event "Top 12 FRA-chT 2017"]
[Site "Chartres"]
[Date "2017.05.22"]
[Round "5"]
[White "De Seroux, Camille"]
[Black "Aflalo, Sophie"]
[Result "1-0"]
[ECO "B24"]
[WhiteElo "2117"]
[BlackElo "2135"]
[Annotator "NA"]
[PlyCount "79"]
[EventDate "2017.??.??"]
[EventType "team-tourn"]
[EventCountry "FRA"]
[SourceTitle "playchess.com"]
[Source "ChessBase"]
[SourceQuality "1"]
[WhiteTeam "Grasse Echecs"]
[BlackTeam "Tremblay-En-France"]
[TimeControl "40/5400+30:1800+30"]

1. e4 {[%emt 0:00:00]} c5 {[%emt 0:00:09]} 2. Nc3 {[%emt 0:00:00]} Nc6 {[%emt 0:00:15]} 3. Bb5 {[%emt 0:00:00]} Nd4 {[%emt 0:00:36]} 4. Nf3 {[%emt 0:01:03]} a6 {[%emt 0:01:52]} 5. Bc4 {[%emt 0:02:22]} Nf6 {[%emt 0:01:38]} 6. d3 {[%emt 0:12:43]} e6 {[%emt 0:00:41]} 7. O-O {[%emt 0:00:12]} d5 {[%emt 0:14:35]} 8. exd5 {[%emt 0:00:25]} exd5 {[%emt 0:00:22]} 9. Nxd5 {[%emt 0:00:28]} Nxd5 {[%emt 0:04:02]} 10. Nxd4 {[%emt 0:01:26]} cxd4 {[%emt 0:00:44]} 11. Qh5 {[%emt 0:00:14]} Be7 {[%emt 0:07:40]} 12. Qxd5 {[%emt 0:03:42]} O-O {[%emt 0:00:52]} 13. Qxd8 {[%emt 0:06:37]} Rxd8 {[%emt 0:00:06]} 14. Re1 {[%emt 0:02:01]} Bb4 {[%emt 0:00:42]} 15. Bg5 {[%emt 0:00:00]} Bxe1 {[%emt 0:21:40]} 16. Bxd8 {[%emt 0:07:06]} Be6 {[%emt 0:02:18]} 17. Rxe1 {[%emt 0:02:24]} Rxd8 {[%emt 0:00:11]} 18. Bxe6 {[%emt 0:00:30]} fxe6 {[%emt 0:00:03]} 19. Rxe6 {[%emt 0:00:12]} Rc8 {[%emt 0:00:03]} 20. Re2 {[%emt 0:02:05]} Rc5 {[%emt 0:00:03]} 21. f4 {[%emt 0:05:25]} Kf7 {[%emt 0:02:51]} 22. Kf2 {[%emt 0:04:29]} Kf6 {[%emt 0:02:39]} 23. Kf3 {[%emt 0:01:11]} Rb5 {[%emt 0:01:06]} 24. c4 {[%emt 0:11:01]} dxc3 {[%emt 0:05:34]} 25. bxc3 {[%emt 0:00:07]} Rb1 {[%emt 0:04:10]} 26. Ke4 {[%emt 0:05:20]} Ke6 {[%emt 0:03:25]} 27. c4 {[%emt 0:04:24]} Rb4 {[%emt 0:07:49]} 28. d4 {[%emt 0:01:49]} Kd6 {[%emt 0:10:21]} 29. Kd3 Ra4 {[%emt 0:04:49]} 30. c5+ {[%emt 0:10:39]} Kd5 {[%emt 0:00:34]} 31. Re5+ {[%emt 0:01:21]} Kc6 {[%emt 0:00:04]} 32. Re6+ {[%emt 0:01:51]} Kd7 {[%emt 0:00:44]} 33. Rb6 {[%emt 0:00:28]} Kc7 {[%emt 0:00:26]} 34. Rb2 {[%emt 0:00:40]} Ra3+ {[%emt 0:01:05]} 35. Ke4 {[%emt 0:00:29]} Rc3 {[%emt 0:02:03]} 36. g4 {[%emt 0:02:13]} a5 {[%emt 0:00:41]} 37. f5 {[%emt 0:06:13]} h6 {[%emt 0:00:06]} 38. Rb6 {[%emt 0:03:47]} Ra3 {[%emt 0:02:00]} 39. Rg6 {[%emt 0:01:01]} Rxa2 {[%emt 0:00:13]} 40. Rxg7+ {[%emt 0:02:40]} 1-0